[Event "GEO-ch 1st League 2021"]
[Site "Tbilisi"]
[Date "2021.03.31"]
[Round "3.4"]
[White "Morchiashvili, Bachana"]
[Black "Bagaturov, Giorgi"]
[Result "1-0"]
[ECO "E15"]
[WhiteElo "2313"]
[BlackElo "2431"]
[Annotator "NA"]
[PlyCount "91"]
[EventDate "2021.03.29"]
[EventType "swiss"]
[EventCountry "GEO"]
[SourceTitle "playchess.com"]
[Source "ChessBase"]
[SourceQuality "1"]
[TimeControl "5400+30"]

1. d4 {[%emt 0:00:00]} e6 {[%emt 0:02:42]} 2. Nf3 {[%emt 0:01:37]} Nf6 {[%emt 0:01:00]} 3. c4 {[%emt 0:00:12]} b6 {[%emt 0:00:21]} 4. g3 {[%emt 0:00:16]} Ba6 {[%emt 0:06:37]} 5. Qc2 {[%emt 0:00:35]} Bb4+ {[%emt 0:02:19]} 6. Bd2 {[%emt 0:00:30]} Be7 {[%emt 0:01:30]} 7. Bg2 {[%emt 0:07:01]} O-O {[%emt 0:03:12] 7...c6 gains popularity.} 8. O-O {[%emt 0:01:40]} d5 {[%emt 0:02:27]} 9. Ne5 {[%emt 0:02:28]} c6 {[%emt 0:02:38]} 10. Rd1 {[%emt 0:31:24]} Nfd7 {[%emt 0:07:05]} 11. cxd5 {[%emt 0:02:06]} cxd5 {[%emt 0:18:50] [#]} 12. Be1 $146 {[%emt 0:05:09]} ({Predecessor:} 12. e4 Nxe5 13. exd5 Be2 14. dxe5 Bxd1 15. Qxd1 exd5 16. Nc3 Nc6 17. Nxd5 Nxe5 18. Bc3 {½-½ (41) Tomashevsky,E (2710)-Alekseev,E (2662) Saratov 2011}) 12... Nxe5 {[%emt 0:01:29]} 13. dxe5 {[%emt 0:00:03]} Nd7 {[%emt 0:00:31]} 14. e4 {[%emt 0:00:58]} Rc8 {[%emt 0:04:39]} 15. Nc3 {[%emt 0:00:39]} d4 {[%emt 0:06:03]} 16. Rxd4 {[%emt 0:03:28]} Qc7 {[%emt 0:00:05]} 17. Rad1 {[%emt 0:07:13]} Nxe5 {[%emt 0:03:08] [#]} (17... Rfd8 $11) 18. Qa4 $1 {[%emt 0:01:24]} Qb7 {[%emt 0:10:06] [#]} (18... Bc4 $16 {keeps fighting.}) 19. Rd7 $18 {[%emt 0:02:51]} Nxd7 {[%emt 0:09:58]} 20. Rxd7 {[%emt 0:00:09]} Rc7 {[%emt 0:00:52]} 21. Rxc7 {[%emt 0:00:34]} Qxc7 {[%emt 0:00:06]} 22. Qxa6 {[%emt 0:00:02]} Rd8 {[%emt 0:00:13]} 23. Bf3 {[%emt 0:01:57]} h6 {[%emt 0:00:34]} 24. Kg2 {[%emt 0:00:30]} Rd7 {[%emt 0:00:36]} 25. h4 {[%emt 0:05:22]} Bf6 {[%emt 0:00:50]} 26. Qa4 {[%emt 0:02:58]} Be5 {[%emt 0:01:40]} 27. h5 {[%emt 0:01:02]} Qc8 {[%emt 0:00:44]} 28. Qb5 {[%emt 0:00:41]} Qc7 {[%emt 0:03:05]} 29. Be2 {[%emt 0:02:29]} Bd4 {[%emt 0:01:16]} 30. Qc4 {[%emt 0:01:21]} Qd8 {[%emt 0:00:33]} 31. Qa4 {[%emt 0:00:44]} Bf6 {[%emt 0:00:50]} 32. Bb5 {[%emt 0:02:48]} Rd4 {[%emt 0:01:03]} 33. Qc2 {[%emt 0:04:31]} Qc8 {[%emt 0:01:17]} 34. Be2 {[%emt 0:00:29]} Qc5 {[%emt 0:01:49]} 35. f4 {[%emt 0:02:44]} Rd8 {[%emt 0:00:22]} 36. e5 {[%emt 0:00:11]} Be7 {[%emt 0:00:02]} 37. Qe4 {[%emt 0:01:01]} Qc8 {[%emt 0:05:35]} 38. Bd3 {[%emt 0:02:50]} Bc5 {[%emt 0:00:04]} 39. Qh7+ {[%emt 0:02:49]} Kf8 {[%emt 0:00:06]} 40. Be4 {[%emt 0:01:04]} Qd7 {[%emt 0:01:33]} 41. b4 {[%emt 0:00:09]} Be3 {[%emt 0:01:06]} 42. Qh8+ {[%emt 0:01:47]} Ke7 {[%emt 0:00:05]} 43. Qxg7 {[%emt 0:00:02]} Bd2 {[%emt 0:00:59]} 44. f5 {[%emt 0:00:17]} Rc8 {[%emt 0:00:27]} 45. Qf6+ {[%emt 0:00:50]} Ke8 {[%emt 0:00:14]} 46. Qh8+ {[%emt 0:00:03]} 1-0

[Event "GEO-ch 1st League 2021"]
[Site "Tbilisi"]
[Date "2021.03.31"]
[Round "3.6"]
[White "Siprashvili, Ivane"]
[Black "Petriashvili, Nikoloz"]
[Result "0-1"]
[ECO "D00"]
[WhiteElo "2075"]
[BlackElo "2425"]
[Annotator "NA"]
[PlyCount "108"]
[EventDate "2021.03.29"]
[EventType "swiss"]
[EventCountry "GEO"]
[SourceTitle "playchess.com"]
[Source "ChessBase"]
[SourceQuality "1"]
[TimeControl "5400+30"]

1. d4 {[%emt 0:00:00]} Nf6 {[%emt 0:00:48]} 2. Nf3 {[%emt 0:00:14]} g6 {[%emt 0:00:05]} 3. Nc3 {[%emt 0:00:51]} d5 {[%emt 0:00:11]} 4. Bg5 {[%emt 0:00:15]} Bg7 {[%emt 0:00:32]} 5. Bxf6 {[%emt 0:00:25]} Bxf6 {[%emt 0:00:19]} 6. e4 {[%emt 0:00:08]} c6 {[%emt 0:02:35]} 7. h3 {[%emt 0:03:08]} O-O {[%emt 0:00:14]} 8. e5 {[%emt 0:00:26]} Bg7 {[%emt 0:00:03]} 9. Qd2 {[%emt 0:02:23]} f6 {[%emt 0:01:11]} 10. exf6 {[%emt 0:00:32]} exf6 {[%emt 0:01:02]} 11. Be2 {[%emt 0:00:14]} Qd6 {[%emt 0:01:09]} 12. O-O {[%emt 0:00:58]} Be6 {[%emt 0:00:37]} 13. Rfe1 {[%emt 0:00:24]} Nd7 {[%emt 0:00:05]} 14. Bd3 {[%emt 0:01:40]} Bf7 {[%emt 0:01:54]} 15. Ne2 {[%emt 0:01:17]} a5 {[%emt 0:07:32]} 16. a4 {[%emt 0:00:48]} Nb6 {[%emt 0:02:36]} 17. c3 {[%emt 0:00:37]} Rfe8 {[%emt 0:04:43]} 18. Qc2 {[%emt 0:02:39]} Bh6 {[%emt 0:05:16]} 19. Ng3 {[%emt 0:09:14]} Red8 {[%emt 0:00:48]} 20. h4 {[%emt 0:00:53]} Nd7 {[%emt 0:16:32]} 21. h5 {[%emt 0:00:46]} f5 {[%emt 0:01:31]} 22. hxg6 {[%emt 0:04:09]} hxg6 {[%emt 0:00:04]} 23. Bxf5 {[%emt 0:10:49]} gxf5 {[%emt 0:00:08]} 24. Nxf5 {[%emt 0:00:07]} Qf6 $1 {[%emt 0:10:18]} 25. Ne5 {[%emt 0:07:56]} (25. Nxh6+ $11 Qxh6 26. Qf5) 25... Nxe5 {[%emt 0:00:42]} 26. dxe5 {[%emt 0:00:18]} Qe6 {[%emt 0:00:12]} 27. Nd4 {[%emt 0:00:53]} (27. Rad1 $17 Bg5 28. Nd4) 27... Qg4 {[%emt 0:06:15]} 28. f3 {[%emt 0:03:36]} Qh5 {[%emt 0:01:51]} 29. e6 {[%emt 0:03:13]} (29. g4 $142 Qg5 30. Qf2) 29... Bg6 {[%emt 0:00:25]} 30. Qf2 {[%emt 0:00:35]} Bf4 {[%emt 0:05:21]} 31. g3 {[%emt 0:01:03]} Bd6 {[%emt 0:00:30]} 32. Kg2 {[%emt 0:00:40]} Rf8 {[%emt 0:00:19]} 33. Re2 {[%emt 0:05:31]} Qg5 {[%emt 0:02:34]} 34. e7 {[%emt 0:00:53] [#]} Rf6 $17 {[%emt 0:02:15]} ({Much less strong is} 34... Bxe7 35. Ne6 $17) (34... Rfe8 $1 $19 35. f4 Qf6) 35. Ne6 {[%emt 0:00:40]} Qf5 {[%emt 0:00:45]} 36. g4 {[%emt 0:00:48]} Qxe6 {[%emt 0:04:46]} 37. Rxe6 {[%emt 0:00:10]} Rxe6 {[%emt 0:00:02]} 38. Re1 {[%emt 0:00:25]} Rxe1 {[%emt 0:01:03]} 39. Qxe1 {[%emt 0:00:02]} Kf7 {[%emt 0:00:04]} 40. Qe3 {[%emt 0:01:08]} Re8 {[%emt 0:00:46]} 41. Kf2 {[%emt 0:03:51]} Rxe7 {[%emt 0:00:22]} 42. Qd4 {[%emt 0:00:26]} Be5 {[%emt 0:01:45]} 43. Qd2 {[%emt 0:00:42]} Kg7 {[%emt 0:00:59]} 44. Kg2 {[%emt 0:00:51]} Rf7 {[%emt 0:00:32]} 45. Qe3 {[%emt 0:00:46]} Bf4 {[%emt 0:00:09]} 46. Qb6 {[%emt 0:00:28]} Re7 {[%emt 0:01:18]} 47. Qd4+ {[%emt 0:00:19]} Be5 {[%emt 0:00:04]} 48. Qd2 {[%emt 0:00:19]} Bc7 {[%emt 0:01:54]} 49. Kh3 {[%emt 0:01:47]} Kg8 {[%emt 0:01:57]} 50. Qg5 {[%emt 0:02:39]} Kf7 {[%emt 0:01:28]} 51. Qd2 {[%emt 0:00:38]} Re8 {[%emt 0:00:24]} 52. f4 {[%emt 0:01:45]} Be4 {[%emt 0:00:22]} 53. Kg3 {[%emt 0:00:32]} Ke7 {[%emt 0:00:11]} 54. Kf2 {[%emt 0:02:09]} Bxf4 {[%emt 0:00:08]} 0-1

[Event "GEO-ch 1st League 2021"]
[Site "Tbilisi"]
[Date "2021.03.31"]
[Round "3.8"]
[White "Donghvani, Nia"]
[Black "Tsotsonava, Elene"]
[Result "0-1"]
[ECO "B33"]
[WhiteElo "1985"]
[BlackElo "1805"]
[Annotator "NA"]
[PlyCount "50"]
[EventDate "2021.03.29"]
[EventType "swiss"]
[EventCountry "GEO"]
[SourceTitle "playchess.com"]
[Source "ChessBase"]
[SourceQuality "1"]
[TimeControl "5400+30"]

1. e4 {[%emt 0:00:07]} c5 {[%emt 0:00:00]} 2. Nf3 {[%emt 0:00:05]} Nc6 {[%emt 0:00:00]} 3. d4 {[%emt 0:00:07]} cxd4 {[%emt 0:00:00]} 4. Nxd4 {[%emt 0:00:04]} Nf6 {[%emt 0:00:04]} 5. Nc3 {[%emt 0:00:08]} e5 {[%emt 0:00:08]} 6. Ndb5 {[%emt 0:00:03]} d6 {[%emt 0:00:08]} 7. Nd5 {[%emt 0:00:07]} Nxd5 {[%emt 0:00:20]} 8. exd5 {[%emt 0:00:02]} Ne7 {[%emt 0:00:08]} 9. c4 {[%emt 0:03:23]} Ng6 {[%emt 0:00:29]} 10. Be2 {[%emt 0:14:52]} Be7 {[%emt 0:02:26] 10...Be7 is better than 10...a6.} 11. O-O {[%emt 0:09:25]} a6 {[%emt 0:01:37]} 12. Nc3 {[%emt 0:03:35]} O-O {[%emt 0:00:15]} 13. Be3 {[%emt 0:10:38]} f5 {[%emt 0:07:47]} 14. Na4 {[%emt 0:08:23]} f4 {[%emt 0:09:27]} 15. Bb6 {[%emt 0:00:02]} Qe8 $1 {[%emt 0:00:13]} 16. Nc3 {[%emt 0:06:05]} Nh4 {[%emt 0:14:09] [#]} 17. f3 $146 {[%emt 0:06:33]} ({Predecessor:} 17. Bh5 g6 18. Bg4 f3 19. Bxf3 Rxf3 20. gxf3 Qd7 21. Kh1 Qh3 22. Rg1 Nxf3 23. Rg2 {0-1 (30) Lorincz,O (2104)-Vanczak,A (2230) Hungary 2003}) 17... Qg6 {[%emt 0:03:42]} 18. Rf2 {[%emt 0:00:04]} Bf5 {[%emt 0:00:28]} 19. b4 {[%emt 0:07:49] [#]} (19. Bf1 $11) 19... e4 $1 {[%emt 0:17:02]} 20. Nxe4 {[%emt 0:06:58]} Bxe4 {[%emt 0:00:51]} 21. fxe4 {[%emt 0:00:06]} f3 {[%emt 0:00:34]} 22. Bxf3 $2 {[%emt 0:04:47]} (22. Bf1 $17 fxg2 23. Rxg2 Nxg2 24. Bxg2) 22... Rxf3 $19 {[%emt 0:01:16] Pin} 23. Qf1 {[%emt 0:05:31]} Raf8 {[%emt 0:08:16]} 24. Rxf3 {[%emt 0:02:15]} Nxf3+ {[%emt 0:00:05]} 25. Kh1 {[%emt 0:00:03]} Nxh2 {[%emt 0:01:43]} 0-1

[Event "GEO-ch 1st League 2021"]
[Site "Tbilisi"]
[Date "2021.03.31"]
[Round "3.9"]
[White "Tskipurishvili, Daviti"]
[Black "Lomaia, Diana"]
[Result "1/2-1/2"]
[ECO "D24"]
[WhiteElo "1807"]
[BlackElo "1946"]
[Annotator "NA"]
[PlyCount "81"]
[EventDate "2021.03.29"]
[EventType "swiss"]
[EventCountry "GEO"]
[SourceTitle "playchess.com"]
[Source "ChessBase"]
[SourceQuality "1"]
[TimeControl "5400+30"]

1. d4 {[%emt 0:00:49]} d5 {[%emt 0:00:00]} 2. Nf3 {[%emt 0:00:05]} Nf6 {[%emt 0:00:00]} 3. c4 {[%emt 0:00:05]} dxc4 {[%emt 0:00:18]} 4. Nc3 {[%emt 0:00:35]} a6 {[%emt 0:00:55]} 5. a4 {[%emt 0:00:35]} Nc6 {[%emt 0:01:13]} 6. e3 {[%emt 0:03:35]} Na5 {[%emt 0:01:53]} 7. Ne5 {[%emt 0:02:42]} Be6 {[%emt 0:08:30]} 8. Be2 {[%emt 0:10:34]} g6 {[%emt 0:02:30]} 9. h4 {[%emt 0:10:53]} h5 {[%emt 0:04:23]} 10. e4 {[%emt 0:05:03]} c6 {[%emt 0:12:51]} 11. Be3 {[%emt 0:02:20]} Bg7 {[%emt 0:01:35]} 12. Qc2 {[%emt 0:00:58]} Ng4 {[%emt 0:03:39]} 13. Nxg4 {[%emt 0:04:49]} hxg4 {[%emt 0:01:16]} 14. Rd1 {[%emt 0:00:45]} Qc7 {[%emt 0:11:28]} 15. d5 {[%emt 0:06:36]} cxd5 {[%emt 0:01:16]} 16. Nxd5 {[%emt 0:00:23]} Bxd5 {[%emt 0:00:30]} 17. Rxd5 {[%emt 0:00:15]} Rh5 {[%emt 0:04:09]} 18. b4 {[%emt 0:10:02]} Rxd5 {[%emt 0:10:59]} 19. exd5 {[%emt 0:00:08]} Nb3 {[%emt 0:00:16]} 20. Qxc4 {[%emt 0:01:23]} (20. h5 $5 {[%cal Rh5g6]} Nd4 21. Bxd4 Bxd4 22. hxg6 $14) 20... Qxc4 {[%emt 0:04:15]} 21. Bxc4 {[%emt 0:00:02]} Nd4 {[%emt 0:00:31]} 22. Bxd4 {[%emt 0:00:34]} Bxd4 {[%emt 0:00:04]} 23. Ke2 {[%emt 0:00:16]} Rc8 {[%emt 0:01:13]} 24. Rc1 {[%emt 0:00:58]} Kd8 {[%emt 0:00:30]} 25. Rc2 $11 {[%emt 0:00:38]} b5 {[%emt 0:08:38]} 26. axb5 {[%emt 0:01:09]} axb5 {[%emt 0:00:27]} 27. Kd3 {[%emt 0:03:15]} Bxf2 {[%emt 0:00:29]} 28. Rxf2 {[%emt 0:01:41]} Rxc4 {[%emt 0:04:13]} 29. Rxf7 {[%emt 0:00:18]} Rxb4 {[%emt 0:06:14]} 30. Rg7 {[%emt 0:00:11]} Rb2 {[%emt 0:01:27]} 31. Rxg6 {[%emt 0:00:34]} Rxg2 {[%emt 0:00:07]} 32. h5 {[%emt 0:00:18]} Rh2 {[%emt 0:04:48]} 33. h6 {[%emt 0:00:16]} g3 {[%emt 0:02:07]} 34. Kd4 {[%emt 0:00:21]} g2 {[%emt 0:02:35]} 35. Kc5 {[%emt 0:00:43]} Rxh6 {[%emt 0:00:07]} 36. Rxg2 {[%emt 0:00:04]} Kd7 {[%emt 0:00:57]} 37. Rb2 {[%emt 0:00:34]} Rh1 {[%emt 0:00:38]} 38. Rxb5 {[%emt 0:00:16]} Rc1+ {[%emt 0:00:02]} 39. Kd4 {[%emt 0:00:05]} Rd1+ {[%emt 0:00:07]} 40. Kc4 {[%emt 0:00:14]} Rc1+ {[%emt 0:00:18]} 41. Kd4 {[%emt 0:00:05]} 1/2-1/2

[Event "GEO-ch 1st League 2021"]
[Site "Tbilisi"]
[Date "2021.03.31"]
[Round "3.10"]
[White "Darsadze, Nikoloz"]
[Black "Mindiashvili, Tengiz"]
[Result "0-1"]
[ECO "D02"]
[WhiteElo "1694"]
[BlackElo "1923"]
[Annotator "NA"]
[PlyCount "48"]
[EventDate "2021.03.29"]
[EventType "swiss"]
[EventCountry "GEO"]
[SourceTitle "playchess.com"]
[Source "ChessBase"]
[SourceQuality "1"]
[TimeControl "5400+30"]

1. d4 {[%emt 0:00:00]} Nf6 {[%emt 0:00:00]} 2. Nf3 {[%emt 0:00:10]} e6 {[%emt 0:00:11]} 3. Bf4 {[%emt 0:00:05]} d5 {[%emt 0:00:52]} 4. e3 {[%emt 0:00:10]} Bd6 {[%emt 0:00:24]} 5. Nbd2 {[%emt 0:00:05]} c5 {[%emt 0:00:29]} 6. dxc5 {[%emt 0:00:54]} Bxc5 {[%emt 0:00:16]} 7. c4 {[%emt 0:02:48]} O-O {[%emt 0:00:29]} 8. Rc1 {[%emt 0:05:34]} d4 {[%emt 0:04:25]} 9. exd4 {[%emt 0:12:58]} Bxd4 {[%emt 0:00:04]} 10. Qc2 {[%emt 0:00:34]} e5 {[%emt 0:03:33]} 11. Bg5 {[%emt 0:02:10]} Nc6 {[%emt 0:03:09]} 12. a3 {[%emt 0:01:05]} h6 {[%emt 0:05:18]} 13. Bxf6 {[%emt 0:04:45]} Qxf6 {[%emt 0:00:04]} 14. Bd3 {[%emt 0:00:11]} Bb6 {[%emt 0:08:37]} 15. O-O {[%emt 0:01:04]} Qf4 {[%emt 0:03:13]} (15... Qe7 $15) 16. Be4 {[%emt 0:05:50]} Be6 {[%emt 0:04:21]} 17. b4 {[%emt 0:01:37]} Rad8 {[%emt 0:00:19]} 18. Rcd1 {[%emt 0:10:51]} Rd7 {[%emt 0:12:17]} 19. Bxc6 {[%emt 0:12:44]} (19. Nb3 $14) 19... bxc6 {[%emt 0:00:14]} 20. Rfe1 {[%emt 0:16:04]} Bf5 {[%emt 0:12:21]} 21. Qa2 $19 {[%emt 0:05:32]} (21. Qc1 $1 $15 f6 22. c5) 21... e4 {[%emt 0:03:40]} 22. g3 {[%emt 0:02:51]} Rxd2 {[%emt 0:00:12]} 23. Rxd2 {[%emt 0:06:32]} Qxf3 {[%emt 0:00:16]} 24. c5 {[%emt 0:00:59]} Bh3 {[%emt 0:00:14]} 0-1

[Event "GEO-ch 1st League 2021"]
[Site "Tbilisi"]
[Date "2021.03.31"]
[Round "3.11"]
[White "Adamia, Jaba"]
[Black "Kitesashvili, Giorgi"]
[Result "1-0"]
[ECO "A52"]
[WhiteElo "1899"]
[BlackElo "1749"]
[Annotator "NA"]
[PlyCount "104"]
[EventDate "2021.03.29"]
[EventType "swiss"]
[EventCountry "GEO"]
[SourceTitle "playchess.com"]
[Source "ChessBase"]
[SourceQuality "1"]
[TimeControl "5400+30"]

1. d4 {[%emt 0:00:00]} Nf6 {[%emt 0:00:00]} 2. c4 {[%emt 0:00:00]} e5 {[%emt 0:00:35]} 3. dxe5 {[%emt 0:00:09]} Ng4 {[%emt 0:00:07]} 4. Bf4 {[%emt 0:00:10]} Nc6 {[%emt 0:00:28]} 5. Nf3 {[%emt 0:00:15]} Bb4+ {[%emt 0:00:19]} 6. Nc3 {[%emt 0:01:31]} Qe7 {[%emt 0:02:31]} 7. Qd5 {[%emt 0:03:24]} Bxc3+ {[%emt 0:00:17]} 8. bxc3 {[%emt 0:00:05]} f6 {[%emt 0:00:14]} 9. exf6 {[%emt 0:02:12]} Nxf6 {[%emt 0:00:02]} 10. Qd3 {[%emt 0:10:15]} d6 {[%emt 0:00:48]} 11. e3 {[%emt 0:01:02]} Ne4 {[%emt 0:01:04]} 12. Nd4 {[%emt 0:02:45]} O-O {[%emt 0:01:39]} 13. Be2 {[%emt 0:05:06]} Nxf2 {[%emt 0:07:21]} 14. Kxf2 {[%emt 0:00:11]} Ne5 {[%emt 0:01:21]} 15. Qd1 {[%emt 0:01:00]} g5 {[%emt 0:03:13]} 16. g3 {[%emt 0:04:11]} gxf4 {[%emt 0:05:10]} 17. exf4 {[%emt 0:00:24]} Bh3 {[%emt 0:08:38]} 18. Re1 {[%emt 0:02:53]} Qg7 {[%emt 0:03:08]} 19. Bf3 {[%emt 0:06:29]} Nxf3 {[%emt 0:10:02]} 20. Qxf3 {[%emt 0:00:26]} c6 {[%emt 0:14:49]} 21. Ne6 {[%emt 0:02:29]} Bxe6 {[%emt 0:01:26]} 22. Rxe6 {[%emt 0:00:07]} Rf6 {[%emt 0:03:27]} 23. Re2 {[%emt 0:07:47]} Raf8 {[%emt 0:01:00]} 24. Rae1 {[%emt 0:03:01]} Qg6 $18 {[%emt 0:06:00]} 25. Re4 {[%emt 0:01:50]} Qf5 {[%emt 0:05:05]} 26. R1e2 {[%emt 0:09:26]} a5 {[%emt 0:01:32]} 27. Kg2 {[%emt 0:01:35]} Rg6 {[%emt 0:00:51]} 28. Qe3 {[%emt 0:04:20]} h5 {[%emt 0:04:26]} 29. Re8 {[%emt 0:06:23]} Qf7 {[%emt 0:06:18]} 30. Rxf8+ {[%emt 0:08:18]} Kxf8 {[%emt 0:00:19]} 31. f5 {[%emt 0:06:15]} Rf6 {[%emt 0:01:26]} 32. Qg5 {[%emt 0:00:13]} d5 {[%emt 0:04:02]} 33. c5 {[%emt 0:02:19]} d4 {[%emt 0:00:33]} 34. cxd4 {[%emt 0:01:38]} Qd5+ {[%emt 0:00:13]} 35. Kh3 {[%emt 0:00:12]} Qxf5+ {[%emt 0:00:57]} 36. Qxf5 {[%emt 0:00:06]} Rxf5 {[%emt 0:00:07]} 37. Rb2 {[%emt 0:00:14]} Rd5 {[%emt 0:02:13]} 38. Rxb7 {[%emt 0:00:10]} Rxd4 {[%emt 0:00:12]} 39. Rb6 {[%emt 0:00:18]} Ra4 {[%emt 0:00:30]} 40. Rxc6 {[%emt 0:00:23]} Rxa2 {[%emt 0:00:04]} 41. Rh6 {[%emt 0:02:09]} a4 {[%emt 0:01:05]} 42. Rxh5 {[%emt 0:00:21]} a3 {[%emt 0:00:22]} 43. c6 {[%emt 0:00:54]} Ke7 {[%emt 0:00:13]} 44. c7 {[%emt 0:00:19]} Kd7 {[%emt 0:00:01]} 45. Rc5 {[%emt 0:00:07]} Kc8 {[%emt 0:08:22]} 46. Rc3 {[%emt 0:00:22]} Ra1 {[%emt 0:00:00]} 47. g4 {[%emt 0:00:23]} a2 {[%emt 0:00:00]} 48. Rc2 {[%emt 0:00:06]} Rd1 {[%emt 0:00:00]} 49. Rxa2 {[%emt 0:00:04]} Kxc7 {[%emt 0:00:00]} 50. Re2 {[%emt 0:00:03]} Kd6 {[%emt 0:00:00]} 51. Kh4 {[%emt 0:00:08]} Rd4 {[%emt 0:00:00]} 52. Kh5 {[%emt 0:00:04]} Kd5 {[%emt 0:03:30]} 1-0

[Event "GEO-ch 1st League 2021"]
[Site "Tbilisi"]
[Date "2021.03.31"]
[Round "3.12"]
[White "Kachkachishvili, Lasha"]
[Black "Esadze, Tamari"]
[Result "0-1"]
[ECO "B50"]
[WhiteElo "1681"]
[BlackElo "1889"]
[Annotator "NA"]
[PlyCount "96"]
[EventDate "2021.03.29"]
[EventType "swiss"]
[EventCountry "GEO"]
[SourceTitle "playchess.com"]
[Source "ChessBase"]
[SourceQuality "1"]
[TimeControl "5400+30"]

1. e4 {[%emt 0:00:00]} c5 {[%emt 0:00:00]} 2. Nf3 {[%emt 0:00:03]} d6 {[%emt 0:00:00]} 3. c3 {[%emt 0:00:07]} Nf6 {[%emt 0:00:06]} 4. Qc2 {[%emt 0:00:07]} Qc7 {[%emt 0:01:05]} 5. Bc4 {[%emt 0:03:58]} e6 {[%emt 0:01:23]} 6. d4 {[%emt 0:00:16]} cxd4 {[%emt 0:02:36]} 7. cxd4 {[%emt 0:00:20]} Bd7 {[%emt 0:00:40]} 8. O-O {[%emt 0:07:12]} Be7 {[%emt 0:10:04]} 9. Bf4 {[%emt 0:04:02]} Nh5 {[%emt 0:04:30]} 10. Be3 {[%emt 0:01:33]} O-O {[%emt 0:02:32]} 11. Qd3 {[%emt 0:02:46]} Nc6 {[%emt 0:09:43]} 12. Rc1 {[%emt 0:03:23]} Qd8 {[%emt 0:02:24]} 13. Nc3 {[%emt 0:12:36]} Rc8 {[%emt 0:03:30]} 14. a3 {[%emt 0:02:31]} Nf6 {[%emt 0:10:04]} 15. h3 {[%emt 0:02:54]} h6 {[%emt 0:04:28]} 16. Ba2 {[%emt 0:01:16]} Nh7 {[%emt 0:07:56]} 17. d5 {[%emt 0:05:13]} Ne5 {[%emt 0:03:55]} 18. Nxe5 {[%emt 0:00:06]} dxe5 $16 {[%emt 0:00:01]} 19. Bxa7 {[%emt 0:16:12]} b6 {[%emt 0:16:03]} 20. dxe6 {[%emt 0:03:01]} Bxe6 {[%emt 0:00:12]} 21. Qxd8 {[%emt 0:04:18]} Bxd8 {[%emt 0:00:03]} 22. Bxe6 {[%emt 0:01:06]} fxe6 {[%emt 0:00:02]} 23. Nb5 {[%emt 0:00:11]} Bg5 {[%emt 0:01:36]} 24. Rc3 {[%emt 0:05:02]} Nf6 {[%emt 0:05:04]} 25. f3 {[%emt 0:24:17]} Rxc3 {[%emt 0:14:33]} 26. bxc3 {[%emt 0:00:30]} Be3+ {[%emt 0:00:30]} 27. Kf1 {[%emt 0:00:30]} Bc5 {[%emt 0:00:30]} 28. Ke2 {[%emt 0:00:30]} Nh5 {[%emt 0:00:30]} 29. Rd1 {[%emt 0:00:30]} Nf4+ {[%emt 0:00:30]} 30. Kf1 {[%emt 0:00:30]} Kh7 {[%emt 0:00:00]} 31. a4 {[%emt 0:00:00]} Rc8 {[%emt 0:00:00]} 32. Rd7 {[%emt 0:00:00]} Nh5 {[%emt 0:00:00]} 33. h4 {[%emt 0:00:00]} Ng3+ {[%emt 0:01:00]} 34. Ke1 {[%emt 0:00:00]} Nh5 {[%emt 0:00:06]} 35. Kd2 {[%emt 0:00:00]} Nf4 {[%emt 0:01:04]} 36. g3 {[%emt 0:00:00]} Nh5 {[%emt 0:00:48]} 37. g4 {[%emt 0:00:00]} Nf4 {[%emt 0:00:02]} 38. Nc7 {[%emt 0:00:00]} Ng6 {[%emt 0:00:53]} 39. Nxe6 {[%emt 0:00:00]} Nxh4 {[%emt 0:00:03]} 40. Ke2 {[%emt 0:00:00]} Kg6 {[%emt 0:00:47]} 41. Nxg7 {[%emt 0:00:00]} Bg1 {[%emt 0:00:25]} 42. Nh5 {[%emt 0:00:00]} Kg5 {[%emt 0:00:27]} 43. a5 {[%emt 0:00:00]} Rxc3 {[%emt 0:00:51]} 44. axb6 {[%emt 0:00:00]} Nxf3 {[%emt 0:00:29]} 45. Rg7+ {[%emt 0:00:00]} Kh4 {[%emt 0:00:03]} 46. Nf6 {[%emt 0:00:00]} Rb3 {[%emt 0:00:57]} 47. Rg6 {[%emt 0:00:00]} Nd4+ {[%emt 0:00:16]} 48. Kd1 {[%emt 0:01:21]} Be3 {[%emt 0:00:11]} 0-1

[Event "GEO-ch 1st League 2021"]
[Site "Tbilisi"]
[Date "2021.04.01"]
[Round "4.1"]
[White "Akhvlediani, Irakli"]
[Black "Morchiashvili, Bachana"]
[Result "0-1"]
[ECO "E90"]
[WhiteElo "2355"]
[BlackElo "2313"]
[Annotator "RC"]
[PlyCount "92"]
[EventDate "2021.03.29"]
[EventType "swiss"]
[EventCountry "GEO"]
[SourceTitle "playchess.com"]
[Source "ChessBase"]
[SourceQuality "1"]
[TimeControl "5400+30"]

1. d4 {[%emt 0:02:45]} Nf6 {[%emt 0:00:00]} 2. c4 {[%emt 0:00:05]} g6 {[%emt 0:00:00]} 3. Nf3 {[%emt 0:00:04]} Bg7 {[%emt 0:00:00]} 4. Nc3 {[%emt 0:00:08]} O-O {[%emt 0:00:03]} 5. e4 {[%emt 0:00:02]} d6 {[%emt 0:00:09]} 6. h3 {[%emt 0:00:04]} e5 {[%emt 0:00:26]} 7. d5 {[%emt 0:00:04]} Nh5 {[%emt 0:00:42]} 8. g3 {[%emt 0:00:06]} f5 {[%emt 0:00:09]} 9. exf5 {[%emt 0:00:06]} gxf5 {[%emt 0:00:08]} 10. Nh4 {[%emt 0:00:02]} Qe8 {[%emt 0:01:14]} 11. Be2 {[%emt 0:08:15]} Nf6 {[%emt 0:01:18]} 12. Bg5 {[%emt 0:03:13]} Na6 {[%emt 0:00:22]} 13. Qc2 {[%emt 0:00:02]} Nb4 {[%emt 0:00:13]} 14. Qb3 {[%emt 0:01:04]} a5 {[%emt 0:00:03]} 15. a3 {[%emt 0:00:15]} Na6 {[%emt 0:00:03]} 16. Qc2 {[%emt 0:00:08]} Bd7 {[%emt 0:00:09]} 17. O-O-O {[%emt 0:06:35]} Nc5 {[%emt 0:01:05]} 18. Be3 {[%emt 0:10:25]} Nfe4 {[%emt 0:02:09]} 19. Nb5 {[%emt 0:24:21]} Qe7 {[%emt 0:09:15]} 20. Bd3 {[%emt 0:06:55]} c6 {[%emt 0:32:55]} 21. dxc6 {[%emt 0:06:51]} Bxc6 {[%emt 0:01:19]} 22. Rhg1 {[%emt 0:01:59]} Nxd3+ {[%emt 0:18:13]} 23. Qxd3 {[%emt 0:00:01]} f4 {[%emt 0:01:23]} 24. gxf4 {[%emt 0:09:28]} Qxh4 {[%emt 0:01:01]} 25. Rg4 {[%emt 0:00:08]} Qe7 {[%emt 0:11:19]} 26. Rdg1 {[%emt 0:00:04]} Rf7 {[%emt 0:00:36]} 27. fxe5 {[%emt 0:05:53]} dxe5 {[%emt 0:06:08]} 28. Rxe4 {[%emt 0:01:11]} Rd8 {[%emt 0:00:25]} 29. Qc2 {[%emt 0:00:11]} Bxe4 {[%emt 0:00:47]} 30. Qxe4 {[%emt 0:00:01]} Kh8 {[%emt 0:00:52]} 31. c5 {[%emt 0:01:42]} Bf6 {[%emt 0:03:38]} 32. Nd6 {[%emt 0:00:35]} Rg7 {[%emt 0:01:20]} 33. Rxg7 {[%emt 0:00:24]} Qxg7 {[%emt 0:00:48]} 34. Qxb7 {[%emt 0:01:12]} Be7 {[%emt 0:02:57]} 35. Qc7 {[%emt 0:04:29]} a4 {[%emt 0:01:20]} 36. Kc2 {[%emt 0:02:27]} Qg6+ {[%emt 0:00:23]} 37. Kd2 {[%emt 0:03:57]} Qe6 {[%emt 0:00:28]} 38. Ke2 {[%emt 0:00:04]} Rf8 {[%emt 0:03:11]} 39. Bh6 {[%emt 0:02:44]} Qxh6 {[%emt 0:00:36]} 40. Qxe7 {[%emt 0:00:02]} Qf4 {[%emt 0:00:08]} 41. Kd1 {[%emt 0:01:11]} Qf3+ {[%emt 0:00:33]} 42. Kc2 {[%emt 0:01:13]} Qxf2+ {[%emt 0:00:21]} 43. Kb1 {[%emt 0:00:02]} Qg1+ {[%emt 0:00:07]} 44. Ka2 {[%emt 0:00:07]} Qg8+ {[%emt 0:00:05]} 45. Kb1 {[%emt 0:00:22]} Rf1+ {[%emt 0:00:11]} 46. Kc2 {[%emt 0:00:02]} Qb3+ {[%emt 0:00:13]} 0-1